Cogmind - Beta 13 X1 @@@ ROGUE MODE // 2023.08.18 @ 12:53:14 Player: VR-DUX Result: Destroyed by D-53 Grenadier with Mini Grenade Launcher Performance ------------- Evolutions (0) 0 Regions Visited (2) 400 Robots Destroyed (18) 90 Value Destroyed (222) 222 Prototype IDs (1) 20 Alien Tech Used (0) 0 Bonus (0) 0 TOTAL SCORE: 732 Bonus ------- None Cogmind --------- Core Integrity 0/250 Matter 74/300 Energy 100/100 System Corruption 0% Temperature Cool (0) Movement Core (350) Ox6 Location -10/Mines Parts ------- > --- POWER (1) -------- (None) > --- PROPULSION (2) --- (None) > --- UTILITY (2) ------ Large Storage Unit > --- WEAPON (2) ------- (None) > --- INVENTORY (15) --- Light Treads Medium Storage Unit Large Storage Unit Structural Scanner Signal Interpreter Signal Interpreter EM Pulse Gun Medium Laser Light Assault Rifle Autogun Peak State ------------ > --- POWER ------------ Ion Engine > --- PROPULSION ------- Light Treads Light Treads > --- UTILITY ---------- Large Storage Unit Sensor Drone Bay > --- WEAPON ----------- Autogun Rocket Launcher > --- INVENTORY -------- Light Treads Medium Storage Unit Large Storage Unit Structural Scanner Signal Interpreter Signal Interpreter EM Pulse Gun Medium Laser Light Assault Rifle Autogun Autogun [Rating: 17] Favorites ----------- Power Ion Engine Engine Ion Engine Propulsion Light Treads Treads Light Treads Leg Aluminum Leg Utility Small Storage Unit Device Sensor Drone Bay Storage Small Storage Unit Processor Signal Interpreter Weapon Autogun Energy Gun EM Pulse Gun Ballistic Gun Autogun Launcher Grenade Launcher Build | -11 -10 -10 ------- Run | Jun Mat Min Slots Evolved . | . . . Power . | . . . Propulsion . | . . . Utility . | . . . Weapon . | . . . Parts Attached 16 | . 13 3 Power 1 | . 1 . Engine 1 | . 1 . Core . | . . . Reactor . | . . . Propulsion 4 | . 4 . Treads 4 | . 4 . Leg . | . . . Wheel . | . . . Hover . | . . . Flight . | . . . Utility 5 | . 4 1 Device 3 | . 2 1 Storage 1 | . 1 . Processor 1 | . 1 . Hackware . | . . . Protection . | . . . Artifact . | . . . Weapon 6 | . 4 2 Energy Gun . | . . . Energy Cannon . | . . . Ballistic Gun 3 | . 2 1 Ballistic Cannon . | . . . Launcher 3 | . 2 1 Special Weapon . | . . . Impact Weapon . | . . . Slashing Weapon . | . . . Piercing Weapon . | . . . Special Melee Weapon . | . . . Unidentified Prototypes 1 | . . 1 Parts Lost 8 | . . 8 Power 1 | . . 1 Propulsion 2 | . . 2 Utility 1 | . . 1 Weapon 4 | . . 4 Highest Loss Streak 8 | . . 8 To Critical Strikes . | . . . Average Slot Usage (%) 87 | . 86 93 Engine 13 | . 14 13 Treads 27 | . 27 25 Device 2 | . 1 13 Storage 14 | . 14 14 Energy Gun 2 | . 3 . Ballistic Gun 13 | . 13 14 Launcher 10 | . 10 11 Naked Turns . | . . . Heaviest Build 45 | 13 36 45 Greatest Support 40 | 20 40 40 Greatest Overweight (x) 1 | . . 1 Average Overweight (x) . | . . . Largest Inventory Capacity 15 | 8 15 15 Average Capacity 11 | 8 10 15 Most Carried 12 | 6 11 12 Average Carried 8 | 6 8 11 Final Capacity 15 | 8 15 15 Final Carried 11 | 6 11 10 Class Distribution -------------------- 100% | Mutant Dominant Class ---------------- Mutant | -10/Materials Mutant | -10/Mines Resources | -11 -10 -10 ----------- Run | Jun Mat Min Matter Collected 472 | 206 266 . Remotely . | . . . Salvage Created 419 | 60 335 24 Parts 40 | 2 38 . Haulers Intercepted 1 | . 1 . Recyclers Shooed . | . . . Parts Field Recycled . | . . . Retrieved Matter . | . . . Parts Self-Destructed . | . . . Prevented . | . . . Kills | -11 -10 -10 ------- Run | Jun Mat Min Combat Hostiles Destroyed 12 | . 8 4 Guns 7 | . 5 2 AOE 5 | . 3 2 Classes Destroyed 7 | 1 5 1 Builder 5 | . 5 . Hauler 1 | . 1 . Recycler 1 | 1 . . Watcher 3 | . 3 . Swarmer 6 | . 6 . Grunt 2 | . 2 . Assembled 4 | . . 4 Best Kill Streak 8 | 1 8 4 Combat Bots Only 4 | . 3 4 Max Kills in Single Turn 3 | 1 3 1 Gunslinging . | . . . Exploded 2 | . 2 1 Melee . | . . . Uniques/NPCs Destroyed . | . . . Combat | -11 -10 -10 -------- Run | Jun Mat Min Damage Taken 1493 | . 185 1308 Core 256 | . 47 209 Absorbed by Shields . | . . . Regen/Repaired (Parts) 108 | . 108 . Core Remaining (%) 100 | 100 . . Volleys Fired 74 | 6 44 24 Largest 2 | 2 2 1 Hottest 60 | 60 53 33 Shots Fired 79 | 10 45 24 Gun 64 | 10 41 13 Cannon . | . . . Launcher 15 | . 4 11 Special . | . . . Kinetic 60 | 6 41 13 Thermal . | . . . Explosive 15 | . 4 11 Electromagnetic 4 | 4 . . Robot Hit Streak 8 | 6 8 4 Robot Miss Streak 4 | 1 4 2 Penetration Max . | . . . Secondary Targets . | . . . Shots Hit Robots 47 | 7 27 13 Core Hits 36 | 2 21 13 Critical Kills . | . . . Critical Parts Destroyed . | . . . Critical Strikes . | . . . Melee Attacks . | . . . Impact . | . . . Slashing . | . . . Piercing . | . . . Sneak Attacks . | . . . Combat Hostiles . | . . . Follow-up Attacks . | . . . Damage Inflicted 1149 | 75 677 397 Guns 593 | 75 366 152 Cannons . | . . . Explosions 556 | . 311 245 Melee . | . . . Ramming . | . . . Kinetic 555 | 37 366 152 Thermal . | . . . Explosive 556 | . 311 245 Electromagnetic 38 | 38 . . Impact . | . . . Slashing . | . . . Piercing . | . . . Highest Corruption . | . . . Average Corruption . | . . . Corruption Purged . | . . . Corruption Blocked . | . . . Overload Shots . | . . . Overflow Damage 17 | . 1 16 Projectiles . | . . . Explosions 17 | . 1 16 Melee . | . . . Knockbacks . | . . . Impact . | . . . Kinetic . | . . . Secondary . | . . . Self-Inflicted Damage 43 | . 22 21 Shots 2 | . 1 1 Rammed . | . . . Targets Rammed . | . . . Kicked . | . . . Crushed . | . . . Highest Temperature 20 | 20 15 6 Average Temperature 6 | 15 4 3 Received Heat Transfer 63 | . 63 . Siege Activations . | . . . Robots Corrupted . | . . . Combat Hostiles . | . . . Parts Fried . | . . . Impact Corruptions . | . . . Robots Melted . | . . . Combat Hostiles . | . . . Parts Melted . | . . . Heat Transferred . | . . . Parts Sabotaged . | . . . Parts Stolen . | . . . Parts Stripped . | . . . Power Chain Reactions . | . . . Missiles Intercepted . | . . . Alert | -11 -10 -10 ------- Run | Jun Mat Min Peak Influence 254 | 5 254 27 Initial 3 | . 3 2 Average 46 | 2 53 5 Maximum Alert Level 1 | . 1 . Low Security (%) 94 | 100 94 100 Level 1 5 | . 5 . Level 2 . | . . . Level 3 . | . . . Level 4 . | . . . Level 5 . | . . . High Security . | . . . Max Security . | . . . Squads Dispatched . | . . . Investigation . | . . . Extermination . | . . . Reinforcement . | . . . Assault . | . . . Garrison . | . . . Intercept . | . . . Searches Triggered . | . . . Construction Impeded . | . . . Haulers Reinforced . | . . . Active Scanning Responses . | . . . Cargo Convoy Interrupts . | . . . Stealth | -11 -10 -10 --------- Run | Jun Mat Min Distress Signals 1 | . 1 . Communications Jammed . | . . . Distress Signals . | . . . Times Spotted 22 | . 11 11 Peak Tracking Total 5 | . 5 5 Tactical Retreats 1 | . . 1 Traps | -11 -10 -10 ------- Run | Jun Mat Min Traps Triggered 1 | . 1 . Indirectly . | . . . Trap Hack Attempts . | . . . Triggered . | . . . Disarmed . | . . . Reprogrammed . | . . . Reused . | . . . Traps Extracted . | . . . Installed . | . . . Triggered . | . . . Machines | -11 -10 -10 ---------- Run | Jun Mat Min Machines Disabled . | . . . Max in Single Turn . | . . . Machines Repaired . | . . . Machines Sabotaged . | . . . Overloaded Fab Kills . | . . . Hacking | -11 -10 -10 --------- Run | Jun Mat Min Machines Accessed 9 | . 8 1 Terminals 5 | . 5 . Fabricators . | . . . Repair Stations 1 | . 1 . Recycling Units 2 | . 2 . Scanalyzers . | . . . Garrison Access . | . . . Total Hacks 27 | . 26 1 Successful 15 | . 14 1 Failed 12 | . 12 . Catastrophic 2 | . 2 . Database Lockouts . | . . . Manual 21 | . 21 . Terminals 20 | . 20 . Fabricators . | . . . Repair Stations 4 | . 4 . Recycling Units 2 | . 2 . Scanalyzers . | . . . Garrison Access . | . . . Terminal Hacks 10 | . 9 1 Record 2 | . 2 . Robot Analysis 6 | . 6 . Open Door 1 | . . 1 Locate Traps 1 | . 1 . Fabricator Hacks . | . . . Repair Station Hacks 4 | . 4 . Scan Component 2 | . 2 . Repair 2 | . 2 . Recycling Unit Hacks 1 | . 1 . Retrieve Components 1 | . 1 . Scanalyzer . | . . . Garrison Access Hacks . | . . . Unauthorized Hacks . | . . . Terminals . | . . . Fabricators . | . . . Repair Stations . | . . . Recycling Units . | . . . Scanalyzers . | . . . Garrison Access . | . . . Data Cores Recovered . | . . . Used . | . . . Hacking Detections 6 | . 6 . Full Trace Events . | . . . Feedback Events . | . . . Feedback Blocked . | . . . Robot Schematics Acquired . | . . . Robots Built . | . . . Authchips . | . . . Time . | . . . Total Robot Build Rating . | . . . Part Schematics Acquired . | . . . Parts Built . | . . . Authchips . | . . . Time . | . . . Total Part Build Rating . | . . . Parts Repaired 2 | . 2 . Time 58 | . 58 . Parts Recycled . | . . . Recycled Matter . | . . . Retrieved Matter . | . . . Retrieved Components 10 | . 10 . Parts Scanalyzed . | . . . Part Schematics Acquired . | . . . Parts Damaged . | . . . Bothacking | -11 -10 -10 ------------ Run | Jun Mat Min Used RIF Installer . | . . . Robots Hacked . | . . . Non-combat . | . . . Combat . | . . . Robot Hacks Applied . | . . . Relay Couplers Released . | . . . Fabnet Peak Effective % . | . . . Robots Rewired . | . . . Allies Hacked . | . . . Hacks Repelled . | . . . Allies | -11 -10 -10 -------- Run | Jun Mat Min Total Allies 3 | . . 3 Largest Group 3 | . . 3 Highest-Rated Group 40 | . . 40 Highest-Rated Ally 16 | . . 16 Total Orders 3 | . . 3 RETURN 3 | . . 3 Ally Attacks 8 | . . 8 Total Damage 57 | . . 57 Kills . | . . . Allies Corrupted . | . . . Allies Melted . | . . . Intel | -11 -10 -10 ------- Run | Jun Mat Min Robot Analysis Total 6 | . 6 . Derelict Logs Recovered . | . . . Drone Launches 4 | . . 4 Drone Recoveries 3 | . . 3 Exploration | -11 -10 -10 ------------- Run | Jun Mat Min Turns Passed 1637 | 32 1401 204 Spaces Moved 836 | 15 756 65 Core . | . . . Treads 816 | . 751 65 Legs 20 | 15 5 . Wheels . | . . . Hover . | . . . Flight . | . . . Fastest Speed 120 | 120 120 160 Average Speed 164 | 120 159 227 Slowest Speed 240 | 120 160 240 Overloaded Moves . | . . . Propulsion Burnouts . | . . . Robots Hopped . | . . . Cave-ins Triggered . | . . . Exploration Rate (%) 36 | 4 95 11 Regions Visited 2 Branch Regions 1 Pre-discovered Areas . | . . . Known Exits Taken 1 | . 1 . Unknown Exits Taken 1 | 1 . . Scrap Searched . | . . . Spaces Dug 8 | . . 8 Terrain Destroyed 95 | . 25 70 Melee . | . . . Projectile . | . . . AOE 95 | . 25 70 Terrain Rammed . | . . . Walls Destroyed . | . . . Machines Disabled . | . . . Actions | -11 -10 -10 --------- Run | Jun Mat Min Total 1032 | 20 912 100 Wait 90 | . 83 7 Move 834 | 14 755 65 Hop . | . . . Pick Up 10 | . 10 . Fast Attach 7 | . 6 1 Attach 6 | . 4 2 Detach 1 | . . 1 Swap 3 | . 3 . Drop 7 | . 7 . Fire 74 | 6 44 24 Melee . | . . . Ram . | . . . Kick . | . . . Crush . | . . . Escape Stasis . | . . . Rewire . | . . . Trap . | . . . Miscellaneous . | . . . Route ------- -11/Junkyard -10/Materials (discovered 4 exits: *Mat x3 / *Min) -10/Mines (discovered 1 exit: *Mat) History --------- Turn | Location | Event 14 | -11/Junkyard | Discovered new exit (range 2) 33 | -11/Junkyard | Entered Materials 216 | -10/Materials | Discovered new exit (range 7) 310 | -10/Materials | Discovered new exit (range 8) 313 | -10/Materials | Build established: Mutant 615 | -10/Materials | Discovered new exit (range 16) 1037 | -10/Materials | Discovered new exit (range 16) 1259 | -10/Materials | Repaired Lgt. Treads 1292 | -10/Materials | Repaired Autogun 1322 | -10/Materials | Identified exit to Mines 1434 | -10/Materials | Entered Mines 1443 | -10/Mines | Found the Drone Emporium 1451 | -10/Mines | Found Prototype Device 1451 | -10/Mines | Identified Sensor Drone Bay 1492 | -10/Mines | Discovered new exit (range 5) 1497 | -10/Mines | Assisted by bots powering up and referring to "LRC-V3" 1527 | -10/Mines | Identified exit to Materials 1529 | -10/Mines | Assembled infested the area 1529 | -10/Mines | Received a Rocket Launcher from a helpful Derelict 1620 | -10/Mines | Core integrity fell below 50% 1630 | -10/Mines | Core integrity fell below 20% 1638 | -10/Mines | Destroyed by D-53 Grenadier with Mini Grenade Launcher Last Messages --------------- 01571_ Destroyed Asb. Hover Unit. 01573_ as-85368 destroyed. 01582_ Destroyed Asb. Hover Unit. 01583_ as-71926 destroyed. 01584_ R-06 Scavenger collects Lgt. Ion Engine. 01585_ as-62866 sneak attacks. 01589_ Grenade Launcher destroyed. 01600_ as-62866 destroyed. 01612_ Sensor Drone destroyed. 01616_ The unstable cave ceiling collapses. 01618_ Lgt. Treads destroyed. 01621_ Ion Engine destroyed. 01622_ The unstable cave ceiling collapses. 01623_ Autogun destroyed. 01624_ Lgt. Treads destroyed. 01625_ The unstable cave ceiling collapses. 01627_ Rocket Launcher destroyed. 01635_ The unstable cave ceiling collapses. 01637_ Autogun destroyed. 01637_ Sensor Drone Bay destroyed. Map ----- +----------------------------------------------------+ | | | | | | | | | | | | | | | | | | | | | | | | | | | | | | | | | | | | | ????????????#########################????????????? | | ???????????################## #????????????? | | ???????????###""## #????????????? | | ???????????##" #X ####?????????? | | ???????????##" #?????????? | | ???????????##" #?????????? | | ???????????##" # % #?????????? | | ???????????###""## @ d< ### | | ???????????######### d # | | ????????????######## # ## #? | | ??????????????????## ? #??????? | | ??????????????????## ## # # ??#??????? | | ??????????????????#### ### ### # ??????????? | | ??????????????????#### ######## % ??????????? | | ???????????????????? ##?????## [ ??????????? | | ????????????????????#####??????# %*= #??????????? | | ????????????????????#####??????##!!= #??????????? | | ????????????????????????????????? #???????????? | | ????????????????????????????????? #???????????? | | ????????????????????????????????? ???????????? | | ????????????????????????????????? ?????????????? | | ????????????????????????????????? ##????????????? | | ????????????????????????????????? ??????????????? | | ????????????????????????????????? #??????????????? | | ?????????????????????????????????#???????????????? | | ?????????????????????????????????????????????????? | | ?????????????????????????????????????????????????? | | ?????????????????????????????????????????????????? | | ?????????????????????????????????????????????????? | | ?????????????????????????????????????????????????? | | ?????????????????????????????????????????????????? | | ?????????????????????????????????????????????????? | +----------------------------------------------------+ Best States ------------- Heat Dissipation 25 Energy Generation 10 Energy Capacity 250 Matter Stores 300 Matter Capacity 300 Sight Range 16 Terrain Scan Density 10 Evasion (%) 55 Recoil Reduction 2 Item Schematics ----------------- None Robot Schematics ------------------ None Fabricated ------------ Nothing Alien Tech Used ----------------- None Achievements -------------- None Challenges ------------ None Game ------ Seed MassProjectionProcessor Manual? 0 Play Time 00:18:36 Cumulative 51.8 hours Start 2023.08.18 @ 12:34:46 End 2023.08.18 @ 12:53:14 Sessions 1 Manual Loads 0 Difficulty Rogue Special Mode None Game No. 30 Rogue 30 Adventurer 0 Explorer 0 Win Type - Total 0 Types 0/0/0/0/0/0/0/0/0 Lore% 30 Gallery% 27 Achievement% 35 Wizard Run 0 Options --------- ASCII 0 Keyboard 0 Movement Mouse Keybinds 0 Fullscreen 1 Font 16/SmallcapsGlow Map View 84x54 Tactical HUD 1 Map Filters NONE Filters NONE Steam 1 RUN: 48845414-05a8-4fc6-96b1-62d8a30a81af